bitfinex-derivatives/quotes_SOLF0:USTF0_20250109
["timestamp","ask_amount","ask_price","bid_price","bid_amount"]
[1736459835654,2.7024,185.03,184.98,14.13624144]
[1736459836153,4.7035,185.1,184.98,14.13624144]
[1736459836353,2.7022,185.05,184.98,14.13624144]
[1736459836553,4.7035,185.1,185.0,2.7027]
[1736459836951,2.7022,185.04,185.0,2.7027]
[1736459837551,2.7024,185.03,185.0,2.7027]
[1736459837753,12.60224144,185.08,184.96,3.2201]
[1736459838459,12.60224144,185.08,184.99,2.7028]
[1736459838655,2.7025,185.03,184.99,2.7028]
[1736459838957,12.60224144,185.08,184.96,3.2201]
[1736459839349,2.7024,185.03,184.96,3.2201]
[1736459839552,2.7024,185.03,184.99,2.7028]
[1736459840155,2.7025,185.02,184.98,2.703]
[1736459843055,12.60224144,185.08,184.96,1.6053]
[1736459843261,12.60224144,185.08,184.95,12.60224144]
[1736459844261,12.60224144,185.08,184.99,2.7029]
[1736459844659,12.60224144,185.08,184.95,12.60224144]
[1736459844860,4.7035,185.1,185.01,12.60224144]
[1736459845863,2.7019,185.07,185.01,12.60224144]
[1736459846665,2.7019,185.07,185.03,2.7023]
[1736459848062,2.702,185.06,185.01,12.60224144]
[1736459848268,12.60224144,185.08,184.98,12.60224144]
[1736459848968,2.7023,185.04,185.0,2.7027]
[1736459850268,2.702,185.06,185.02,2.7024]
[1736459850458,2.702,185.06,184.95,12.60224144]
[1736459850661,2.702,185.06,185.01,12.60224144]
[1736459851162,2.702,185.06,185.03,2.7023]
[1736459852062,2.702,185.06,185.01,12.60224144]
[1736459852063,2.7022,185.05,185.01,12.60224144]
[1736459852271,4.7035,185.1,185.01,12.60224144]
[1736459852663,84.32,185.17,185.07,2.7017]
[1736459852867,84.32,185.17,185.04,12.60224144]
[1736459852868,1.6543,185.16,185.04,12.60224144]
[1736459853072,2.7011,185.12,185.09,2.7015]
[1736459853266,1.6543,185.16,185.04,12.60224144]
[1736459853665,2.7011,185.12,185.09,2.7015]
[1736459854070,1.6543,185.16,185.04,12.60224144]
[1736459854369,1.6543,185.16,185.07,2.7017]
[1736459854563,1.6543,185.16,185.03,12.60224144]
[1736459855363,12.60224144,185.14,185.03,12.60224144]
[1736459855670,12.60224144,185.14,185.01,4.6548]
[1736459856068,2.7017,185.08,185.04,2.7022]
[1736459856275,12.60224144,185.14,185.04,2.7022]
[1736459856765,2.7012,185.11,185.04,2.7022]
[1736459856970,12.60224144,185.14,185.04,2.7022]
[1736459857371,2.7017,185.08,185.04,2.7022]
[1736459858971,2.7017,185.08,185.01,4.6548]
[1736459860073,2.7014,185.1,185.03,12.60224144]
[1736459861271,2.7014,185.1,185.05,2.702]
[1736459861471,2.7014,185.1,185.03,12.60224144]
[1736459862871,12.60224144,185.14,185.03,12.60224144]
[1736459863072,2.7015,185.09,185.06,2.7018]
[1736459863272,2.7015,185.09,185.01,4.6548]
[1736459863273,12.60224144,185.14,185.01,3.1233]
[1736459864178,12.60224144,185.11,184.97,7.46834866]
[1736459864475,3.0723,185.1,184.98,12.60224144]
[1736459864670,8.1323,185.1,184.98,12.60224144]
[1736459864871,2.7023,185.04,185.0,2.7028]
[1736459866275,12.60224144,185.08,184.99,2.7029]
[1736459866575,12.60224144,185.08,184.96,1.5503]
[1736459866778,2.7031,184.98,184.95,2.7034]
[1736459866976,12.60224144,185.02,184.92,20.0705901]
[1736459867176,12.60224144,185.02,184.92,7.46834866]
[1736459867477,4.6874,185.01,184.92,7.46834866]
[1736459867778,2.7035,184.96,184.9,4.5939]
[1736459868679,4.6874,185.01,184.9,4.5939]
[1736459868977,2.7031,184.98,184.94,2.7037]
[1736459870478,1.5053,185.01,184.92,12.60224144]
[1736459871182,2.7029,185.0,184.95,2.7034]
[1736459871484,1.5053,185.01,184.95,2.7034]
[1736459871783,1.5053,185.01,184.92,12.60224144]
[1736459871984,1.5053,185.01,184.9,4.5939]
[1736459872179,2.7031,184.98,184.92,2.704]
[1736459872482,1.5053,185.01,184.92,2.704]
[1736459873183,2.7035,184.96,184.92,2.704]
[1736459874286,2.7037,184.94,184.9,2.7042]
[1736459874587,1.5053,185.01,184.82,29.87339464]
[1736459874588,12.60224144,184.99,184.86,15.75944144]
[1736459875589,12.60224144,184.96,184.86,3.1572]
[1736459875988,12.60224144,184.93,184.83,14.11124144]
[1736459876689,2.7041,184.91,184.86,2.7048]
[1736459877196,17.66224144,184.96,184.86,12.60224144]
[1736459877394,2.704,184.92,184.88,2.7045]
[1736459877593,17.66224144,184.96,184.83,14.11124144]
[1736459877892,17.66224144,184.96,184.87,2.7047]
[1736459878094,17.66224144,184.96,184.83,14.11124144]
[1736459878293,17.66224144,184.96,184.86,12.60224144]
[1736459880196,17.66224144,184.96,184.83,14.11124144]
[1736459880697,1.5912,184.95,184.83,14.11124144]
[1736459881496,2.7042,184.91,184.87,2.7046]
[1736459882793,2.704,184.92,184.88,2.7044]
[1736459882998,12.60224144,184.98,184.86,12.60224144]
[1736459883298,12.60224144,184.95,184.83,14.11124144]
[1736459883798,2.7042,184.91,184.87,2.7046]
[1736459884702,5.06,184.91,184.74,7.46834866]
[1736459884900,12.60224144,184.88,184.79,2.7058]
[1736459885698,12.60224144,184.88,184.77,2.7061]
[1736459885899,12.60224144,184.85,184.75,4.6904]
[1736459886090,3.124,184.9,184.74,42.47563608]
[1736459886091,12.60224144,184.82,184.74,29.87339464]
[1736459886295,12.60224144,184.82,184.69,12.60224144]
[1736459886491,1.5348,184.81,184.69,12.60224144]
[1736459886697,6.563,184.84,184.72,12.60224144]
[1736459886897,2.7056,184.81,184.76,2.7063]
[1736459888799,2.7056,184.81,184.72,12.60224144]
[1736459888800,2.7054,184.83,184.79,2.7059]
[1736459889005,17.66224144,184.88,184.79,2.7059]
[1736459889703,17.66224144,184.88,184.77,2.706]
[1736459889903,17.66224144,184.88,184.75,12.60224144]
[1736459890105,12.60224144,184.85,184.75,12.60224144]
[1736459890799,12.60224144,184.87,184.75,12.60224144]
[1736459891202,5.06,184.88,184.72,17.66224144]
[1736459891203,12.60224144,184.84,184.72,17.66224144]
[1736459891404,2.7057,184.8,184.75,2.7064]
[1736459891802,2.7057,184.8,184.72,17.66224144]
[1736459892107,2.7057,184.8,184.76,2.7063]
[1736459892407,2.7061,184.78,184.72,17.66224144]
[1736459892708,2.7061,184.78,184.74,2.7066]
[1736459893105,12.60224144,184.84,184.72,17.66224144]
[1736459893405,12.60224144,184.84,184.73,2.7067]
[1736459893902,12.60224144,184.81,184.68,3.0458]
[1736459894110,12.60224144,184.81,184.69,12.60224144]
[1736459894307,2.706,184.78,184.69,12.60224144]
[1736459894607,12.60224144,184.81,184.69,12.60224144]
[1736459895808,2.706,184.78,184.74,2.7066]
[1736459896610,2.7062,184.77,184.74,2.7066]
[1736459897310,2.7058,184.8,184.76,2.7062]
[1736459897510,12.60224144,184.84,184.72,12.60224144]
[1736459897811,12.60224144,184.84,184.73,1.526]
[1736459898215,2.7058,184.8,184.76,2.7062]
[1736459898407,2.7058,184.8,184.73,1.526]
[1736459898710,2.7058,184.8,184.75,2.7064]
[1736459899010,2.7058,184.8,184.73,1.526]
[1736459900111,2.7058,184.8,184.76,2.7062]
[1736459900513,17.66224144,184.87,184.75,12.60224144]
[1736459900710,17.66224144,184.87,184.77,2.706]
[1736459901112,2.7057,184.81,184.77,2.706]
[1736459901607,12.60224144,184.84,184.76,2.7063]
[1736459902209,12.60224144,184.84,184.75,2.7064]
[1736459902814,12.60224144,184.84,184.73,1.526]
[1736459903315,2.7061,184.78,184.74,2.7065]
[1736459903611,2.7061,184.78,184.73,1.526]
[1736459904314,2.7059,184.79,184.75,2.7063]
[1736459904714,2.7059,184.79,184.76,2.7063]
[1736459906814,2.7057,184.8,184.76,2.7063]
[1736459907518,2.7057,184.8,184.73,1.526]
[1736459907811,2.7057,184.8,184.77,2.7061]
[1736459908016,17.66224144,184.87,184.74,12.60224144]
[1736459908211,17.66224144,184.87,184.77,12.60224144]
[1736459908415,2.7051,184.85,184.77,12.60224144]
[1736459908812,3.1604,184.89,184.77,12.60224144]
[1736459909117,3.1604,184.89,184.8,12.60224144]
[1736459909118,1.5348,184.89,184.8,12.60224144]
[1736459909317,1.5348,184.89,184.77,12.60224144]
[1736459909710,1.5348,184.89,184.74,5.06]
[1736459909711,1.5348,184.89,184.8,12.60224144]
[1736459910212,14.14234144,184.9,184.84,2.705]
[1736459912023,2.7047,184.88,184.84,2.705]
[1736459912721,14.14234144,184.9,184.84,2.705]
[1736459912923,2.7047,184.87,184.84,2.705]
[1736459913221,14.14234144,184.9,184.81,2.7055]
[1736459913618,2.705,184.85,184.81,2.7055]
[1736459914723,2.705,184.85,184.82,2.7054]
[1736459918828,2.7048,184.87,184.8,12.60224144]
[1736459919329,2.7049,184.86,184.83,2.7052]
[1736459928436,8.09417805,184.86,184.8,8.09417805]
[1736459929135,1.5401,184.9,184.74,7.46834866]
[1736459929336,8.09417805,184.8,184.74,15.56252671]
[1736459929632,2.7061,184.78,184.74,18.26902671]
[1736459929838,2.7061,184.78,184.74,10.80067805]
[1736459930039,2.7061,184.78,184.74,8.09417805]
[1736459930730,2.7061,184.78,184.7,10.55294866]
[1736459930731,2.7064,184.76,184.7,10.55294866]
[1736459930931,8.09417805,184.78,184.7,11.17877805]
[1736459931138,8.09417805,184.78,184.72,8.09417805]
[1736459931539,8.09417805,184.82,184.74,8.09417805]
[1736459932032,8.09417805,184.82,184.75,2.7064]
[1736459932936,2.7057,184.8,184.75,2.7064]
[1736459933137,8.09417805,184.82,184.75,2.7064]
[1736459933632,2.706,184.79,184.75,2.7064]
[1736459933939,8.09417805,184.8,184.75,2.7064]
[1736459934340,2.706,184.79,184.75,2.7064]
[1736459934535,8.09417805,184.8,184.75,2.7064]
[1736459934736,2.7059,184.79,184.75,2.7064]
[1736459938746,2.7061,184.78,184.75,2.7064]
[1736459939046,8.09417805,184.78,184.72,8.09417805]
[1736459940045,2.7062,184.77,184.74,8.09417805]
[1736459942245,2.7062,184.77,184.74,10.80067805]
[1736459944245,8.09417805,184.78,184.7,3.2011]
[1736459944441,8.09417805,184.78,184.71,8.09417805]
[1736459944644,2.7066,184.75,184.72,2.7068]
[1736459945145,8.09417805,184.78,184.71,8.09417805]
[1736459945346,2.7065,184.75,184.72,2.7069]
[1736459946750,2.7063,184.77,184.73,10.80077805]
[1736459946946,2.7063,184.77,184.73,8.09417805]
[1736459947447,2.7063,184.77,184.74,2.7066]
[1736459948440,8.09417805,184.8,184.73,8.09417805]
[1736459948751,2.7061,184.78,184.75,2.7064]
[1736459949351,1.5196,184.83,184.77,8.09417805]
[1736459949857,9.60357805,184.84,184.77,8.09417805]
[1736459950052,9.60357805,184.84,184.78,2.706]
[1736459950853,2.7056,184.82,184.78,2.706]
[1736459951449,9.60357805,184.84,184.78,2.706]
[1736459951647,2.7056,184.81,184.78,2.706]
[1736459954351,2.7054,184.82,184.79,2.7058]
[1736459954555,9.60357805,184.84,184.79,2.7058]
[1736459955354,9.60357805,184.84,184.79,8.09417805]
[1736459955661,2.7056,184.81,184.79,8.09417805]
[1736459958164,2.7056,184.81,184.78,2.706]
[1736459958355,8.09417805,184.82,184.75,8.09417805]
[1736459958759,8.09417805,184.78,184.71,8.09417805]
[1736459959459,2.7066,184.75,184.73,8.09417805]
[1736459961556,2.7059,184.79,184.73,8.09417805]
[1736459961858,1.5003,184.81,184.76,8.09417805]
[1736459963361,1.5003,184.81,184.75,2.7064]
[1736459963858,1.5003,184.81,184.76,10.80047805]
[1736459965061,2.706,184.79,184.76,10.80047805]
[1736459965764,1.5094,184.84,184.76,10.80047805]
[1736459965957,2.7056,184.82,184.78,8.09417805]
[1736459966157,1.5094,184.84,184.78,8.09417805]
[1736459966356,9.60357805,184.84,184.78,8.09417805]
[1736459967161,2.7056,184.81,184.78,10.80017805]
[1736459970260,10.76063164,184.9,184.8,8.09417805]
[1736459970458,13.15417805,184.89,184.82,8.09417805]
[1736459970758,2.7053,184.83,184.82,8.09417805]
[1736459970962,2.7053,184.83,184.8,10.79977805]
[1736459972465,8.09417805,184.87,184.8,10.79977805]
[1736459972659,2.7052,184.84,184.82,8.09417805]
[1736459974666,2.705,184.85,184.82,8.09417805]
[1736459975568,2.705,184.85,184.82,10.79957805]
[1736459976263,2.705,184.85,184.82,8.09417805]
[1736459976666,8.09417805,184.89,184.82,8.09417805]
[1736459976667,2.7052,184.84,184.82,8.09417805]
[1736459978673,2.7055,184.82,184.78,2.7059]
[1736459978873,8.09417805,184.85,184.78,10.80007805]
[1736459979373,2.7055,184.82,184.79,2.7058]
[1736459980273,2.7055,184.82,184.8,8.09417805]
[1736459981672,2.7057,184.81,184.78,2.7059]
[1736459981872,2.7057,184.81,184.79,8.09417805]
[1736459983776,2.7055,184.82,184.79,8.09417805]
[1736459983971,8.09417805,184.87,184.79,8.09417805]
[1736459984672,2.7055,184.82,184.79,8.09417805]
[1736459986471,2.7055,184.82,184.79,10.79997805]
[1736459986775,2.7052,184.84,184.81,8.09417805]
[1736459986979,2.7052,184.84,184.83,8.09417805]
[1736459987675,2.7046,184.88,184.83,8.09417805]
[1736459987881,17.20530969,184.92,184.85,8.09417805]
[1736459988271,2.7047,184.87,184.85,8.09417805]
[1736459988880,8.09417805,184.9,184.83,8.09417805]
[1736459989081,8.09417805,184.88,184.81,8.09417805]
[1736459989389,8.09417805,184.86,184.78,2.7059]
[1736459989678,2.7054,184.83,184.79,8.09417805]
[1736459989876,8.09417805,184.86,184.79,2.7058]
[1736459990077,8.09417805,184.84,184.77,8.09417805]
[1736459990579,8.09417805,184.84,184.78,2.706]
[1736459990786,2.7056,184.81,184.78,2.706]
[1736459991487,2.7056,184.81,184.79,8.09417805]
[1736459991779,8.09417805,184.84,184.79,8.09417805]
[1736459991986,8.09417805,184.86,184.79,10.79997805]
[1736459992188,8.09417805,184.86,184.81,8.09417805]
[1736459992491,5.06,184.87,184.81,8.09417805]
[1736459992679,2.7054,184.83,184.81,8.09417805]
[1736459995985,5.06,184.87,184.81,8.09417805]
[1736459996387,8.09417805,184.86,184.81,8.09417805]
[1736459996890,2.7054,184.83,184.79,2.7059]
[1736459997183,2.7054,184.83,184.8,8.09417805]
[1736459998480,2.7054,184.83,184.8,10.79977805]
[1736459998687,2.7054,184.83,184.82,8.09417805]
[1736459999181,2.7054,184.83,184.8,10.79977805]
[1736459999982,2.7058,184.8,184.78,8.09417805]
[1736460000387,5.06,184.87,184.76,8.09417805]
[1736460000388,8.09417805,184.83,184.76,8.09417805]
[1736460000591,2.706,184.79,184.76,8.09417805]
[1736460000985,2.706,184.79,184.74,1.6386]
[1736460000986,8.09417805,184.81,184.74,1.6386]
[1736460001193,8.09417805,184.77,184.71,8.09417805]
[1736460001487,4.6129,184.86,184.7,7.46834866]
[1736460001488,8.09417805,184.75,184.7,7.46834866]
[1736460001683,2.707,184.71,184.7,7.46834866]
[1736460002086,4.6129,184.79,184.67,8.09417805]
[1736460002087,8.09417805,184.73,184.67,8.09417805]
[1736460002285,8.09417805,184.75,184.67,8.09417805]
[1736460002683,8.09417805,184.71,184.65,8.09417805]
[1736460003282,8.09417805,184.69,184.6,4.7476]
[1736460003592,8.09417805,184.69,184.62,8.09417805]
[1736460003891,2.7078,184.66,184.62,8.09417805]
[1736460004882,8.09417805,184.69,184.62,8.09417805]
[1736460005085,2.7079,184.65,184.62,8.09417805]
[1736460005284,8.09417805,184.69,184.58,2.7088]
[1736460005484,8.09417805,184.65,184.59,8.09417805]
[1736460006693,2.7083,184.63,184.59,8.09417805]
[1736460007190,8.09417805,184.65,184.59,8.09417805]
[1736460007391,2.7086,184.61,184.59,8.09417805]
[1736460007590,8.09417805,184.65,184.57,8.09417805]
[1736460008185,8.09417805,184.63,184.48,84.42]
[1736460008387,5.06,184.64,184.57,8.09417805]
[1736460008585,8.09417805,184.63,184.57,8.09417805]
[1736460009595,2.7088,184.6,184.57,8.09417805]
[1736460010692,4.8098,184.72,184.59,8.09417805]
[1736460010895,5.06,184.67,184.61,8.09417805]
[1736460011485,8.09417805,184.7,184.63,8.09417805]
[1736460011690,13.15417805,184.7,184.63,8.09417805]
[1736460011888,8.09417805,184.7,184.63,8.09417805]
[1736460012595,2.7078,184.66,184.63,8.09417805]
[1736460013091,2.7078,184.66,184.61,8.09417805]
[1736460013293,2.7078,184.66,184.59,12.67459636]
[1736460013594,12.67459636,184.71,184.59,12.67459636]
[1736460013792,21.6201,184.85,184.65,12.67459636]
[1736460013990,12.67459636,184.78,184.68,12.67459636]
[1736460014194,12.67459636,184.78,184.69,2.7072]
[1736460014604,12.67459636,184.81,184.68,12.67459636]
[1736460014797,2.7062,184.77,184.71,12.67459636]
[1736460014992,17.73459636,184.81,184.68,12.67459636]
[1736460015200,12.67459636,184.78,184.68,12.67459636]
[1736460015389,12.67459636,184.75,184.66,2.7078]
[1736460015594,5.06,184.74,184.6,4.6746]
[1736460015897,5.06,184.74,184.61,12.67459636]
[1736460016394,2.7075,184.68,184.63,2.7082]
[1736460016697,12.67459636,184.72,184.61,12.67459636]
[1736460017092,12.67459636,184.72,184.6,4.6746]
[1736460017298,12.67459636,184.69,184.58,12.67459636]
[1736460017600,12.67459636,184.69,184.56,2.7092]
[1736460017800,12.67459636,184.69,184.55,12.67459636]
[1736460018294,12.67459636,184.69,184.57,2.709]
[1736460018697,2.7084,184.62,184.57,2.709]
[1736460019299,2.7085,184.61,184.55,15.38389636]
[1736460019497,12.67459636,184.66,184.55,15.38389636]
[1736460019894,14.20639636,184.66,184.55,15.38389636]
[1736460020391,14.20639636,184.66,184.55,12.67459636]
[1736460020595,3.0686,184.65,184.53,3.0667]
[1736460023200,2.7092,184.57,184.53,3.0667]
[1736460024503,3.0686,184.65,184.53,3.0667]
[1736460024707,3.0686,184.65,184.55,12.67459636]
[1736460025202,14.20639636,184.66,184.58,12.67459636]
[1736460025203,1.5318,184.66,184.58,12.67459636]
[1736460026710,5.06,184.71,184.58,12.67459636]
[1736460026910,5.06,184.71,184.59,1.6017]
[1736460027507,5.06,184.71,184.61,2.7085]
[1736460029003,12.67459636,184.72,184.61,12.67459636]
[1736460029206,5.06,184.73,184.64,12.67459636]
[1736460029503,19.30959636,184.75,184.64,12.67459636]
[1736460030101,6.635,184.75,184.67,12.67459636]
[1736460030505,2.707,184.72,184.67,15.38209636]
[1736460030702,2.707,184.72,184.67,12.67459636]
[1736460031311,2.707,184.72,184.67,15.38219636]
[1736460031806,2.707,184.72,184.68,2.7074]
[1736460032008,2.707,184.72,184.67,12.67459636]
[1736460032703,2.707,184.72,184.67,15.38209636]
[1736460033298,12.67459636,184.81,184.71,12.67459636]
[1736460033507,12.67459636,184.81,184.71,17.71459636]
[1736460034611,12.67459636,184.81,184.71,20.42149636]
[1736460035110,2.7063,184.76,184.71,20.42149636]
[1736460036208,2.7064,184.75,184.71,20.42149636]
[1736460036805,2.7063,184.76,184.71,20.42149636]
[1736460038105,12.67459636,184.81,184.72,5.04]
[1736460038307,2.7065,184.75,184.72,5.04]
[1736460039510,12.67459636,184.81,184.73,2.7067]
[1736460039708,15.88159636,184.84,184.74,12.67459636]
[1736460040408,1.5069,184.85,184.74,12.67459636]
[1736460040807,2.7055,184.82,184.74,12.67459636]
[1736460041006,1.5069,184.85,184.74,12.67459636]
[1736460041307,12.67459636,184.87,184.78,2.7059]
[1736460041506,1.5001,184.89,184.79,5.04]
[1736460041707,1.5001,184.89,184.8,12.67459636]
[1736460042411,15.75829636,184.9,184.8,12.67459636]
[1736460042614,1.5207,184.9,184.8,14.33539636]
[1736460043013,2.7046,184.88,184.83,2.7052]
[1736460043306,12.67459636,184.93,184.83,2.7052]
[1736460043911,2.7043,184.9,184.83,2.7052]
[1736460044110,12.67459636,184.93,184.81,4.3002]
[1736460044312,12.67459636,184.9,184.81,1.5947]
[1736460044812,2.7051,184.85,184.81,1.5947]
[1736460045015,12.67459636,184.9,184.81,1.5947]
[1736460045307,12.67459636,184.93,184.82,12.67459636]
[1736460045512,4.5838,184.95,184.82,12.67459636]
[1736460046218,4.5838,184.95,184.85,12.67459636]
[1736460046406,12.67459636,184.99,184.85,12.67459636]
[1736460046609,12.67459636,184.99,184.86,1.6554]
[1736460046815,12.67459636,184.99,184.87,5.04]
[1736460047618,12.67459636,184.99,184.87,7.7447]
[1736460048010,2.7039,184.93,184.87,7.7447]
[1736460048613,12.67459636,184.99,184.86,1.6554]
[1736460048806,12.67459636,184.96,184.84,5.04]
[1736460049012,12.67459636,184.96,184.82,12.67459636]
[1736460049013,12.67459636,184.93,184.82,12.67459636]
[1736460049213,2.7048,184.86,184.82,12.67459636]
[1736460049606,12.67459636,184.93,184.81,1.5947]
[1736460049806,12.67459636,184.9,184.8,1.6608]
[1736460050019,12.67459636,184.9,184.79,12.67459636]
[1736460050318,12.67459636,184.9,184.78,4.3368]
[1736460050319,12.67459636,184.87,184.78,1.6308]
[1736460050909,2.7053,184.83,184.78,1.6308]
[1736460051114,12.67459636,184.9,184.78,4.3367]
[1736460051616,2.7053,184.83,184.78,4.3367]
[1736460052317,2.7053,184.83,184.79,2.7059]
[1736460053214,2.7053,184.83,184.79,2.7058]
[1736460055118,12.67459636,184.9,184.77,1.521]
[1736460055417,12.67459636,184.87,184.76,12.67459636]
[1736460055616,12.67459636,184.87,184.72,6.5679]
[1736460055617,12.67459636,184.87,184.73,12.67459636]
[1736460055919,12.67459636,184.87,184.75,2.7064]
[1736460056309,12.67459636,184.87,184.74,2.7066]
[1736460057616,12.67459636,184.84,184.72,1.5279]
[1736460057817,1.6082,184.83,184.72,14.20249636]
[1736460058018,2.706,184.79,184.74,2.7066]
[1736460058220,2.706,184.79,184.72,14.20249636]
[1736460058620,2.706,184.79,184.74,2.7066]
[1736460058820,12.67459636,184.9,184.78,12.67459636]
[1736460059414,12.67459636,184.9,184.72,1.5279]
[1736460059619,12.67459636,184.9,184.78,12.67459636]
[1736460059815,12.67459636,184.9,184.78,15.38049636]
[1736460060218,2.7054,184.83,184.78,15.38049636]
[1736460060414,2.7054,184.83,184.78,12.67459636]
[1736460060622,2.7054,184.83,184.72,1.5279]
[1736460060623,2.705,184.86,184.81,12.67459636]
[1736460061123,2.705,184.86,184.82,2.7054]
[1736460061318,1.6082,184.91,184.81,12.67459636]
[1736460061617,3.2272,184.92,184.84,12.67459636]
[1736460061826,3.2272,184.92,184.77,15.87809636]
[1736460061827,12.67459636,184.91,184.77,15.87809636]
[1736460062130,12.67459636,184.88,184.77,18.58419636]
[1736460062318,12.67459636,184.88,184.77,15.87809636]
[1736460062516,12.67459636,184.88,184.77,12.67459636]
[1736460062716,12.67459636,184.85,184.74,12.67459636]
[1736460062919,3.2677,184.84,184.74,12.67459636]
[1736460063322,3.2677,184.84,184.74,15.38109636]
[1736460063625,2.706,184.79,184.74,15.38109636]
[1736460063926,12.67459636,184.82,184.72,1.5279]
[1736460064117,17.71459636,184.82,184.71,12.67459636]
[1736460064319,2.7064,184.76,184.71,12.67459636]
[1736460064817,17.71459636,184.82,184.69,1.6478]
[1736460065426,25.30023871,184.82,184.69,4.355]
[1736460065924,25.30023871,184.82,184.7,2.7071]
[1736460066125,25.30023871,184.82,184.68,1.6088]
[1736460066724,25.30023871,184.82,184.66,20.26023871]
[1736460066925,20.26023871,184.79,184.64,1.5216]
[1736460067117,25.30023871,184.82,184.66,20.26023871]
[1736460067626,25.30023871,184.82,184.68,2.7074]
[1736460068028,25.30023871,184.82,184.66,20.26023871]
[1736460068324,5.04,184.82,184.66,20.26023871]
[1736460068823,5.04,184.82,184.69,2.7073]
[1736460069030,5.04,184.82,184.66,20.26023871]
[1736460069632,1.5273,184.83,184.72,20.26023871]
[1736460070827,3.2677,184.84,184.75,20.26023871]
[1736460071031,1.575,184.9,184.78,20.26023871]
[1736460071219,1.575,184.9,184.81,20.26023871]
[1736460071419,2.7047,184.87,184.83,2.7053]
[1736460071627,1.575,184.9,184.78,20.26023871]
[1736460072127,2.705,184.86,184.81,2.7055]
[1736460074529,1.575,184.9,184.78,20.26023871]
[1736460074736,1.575,184.9,184.79,1.6138]
[1736460074936,17.29831745,184.94,184.81,20.26023871]
[1736460075331,12.25831745,184.94,184.84,20.26023871]
[1736460075532,9.10301745,184.94,184.87,20.26023871]
[1736460075731,9.10301745,184.94,184.91,2.7041]
[1736460075928,12.25411745,185.0,184.87,20.26023871]
[1736460076337,2.7035,184.96,184.88,2.7045]
[1736460076534,3.1511,185.0,184.84,23.47553871]
[1736460077138,3.1511,185.0,184.9,2.7042]
[1736460078836,2.7036,184.95,184.9,2.7042]
[1736460079240,3.1511,185.0,184.84,23.47553871]
[1736460079439,20.26023871,184.98,184.84,3.2153]
[1736460080137,20.26023871,184.98,184.85,2.7049]
[1736460080138,2.7042,184.91,184.85,2.7049]
[1736460080336,20.26023871,184.95,184.81,20.26023871]
[1736460080541,20.26023871,184.95,184.79,9.7202]
[1736460080736,2.7046,184.88,184.82,2.7053]
[1736460080941,20.26023871,184.92,184.79,4.6802]
[1736460081243,3.1675,184.91,184.79,4.6802]
[1736460081439,2.705,184.86,184.8,2.7057]
[1736460081639,3.1675,184.91,184.79,3.1571]
[1736460081841,20.26023871,184.89,184.75,1.5542]
[1736460083738,2.705,184.85,184.79,2.7057]
[1736460084245,2.7047,184.87,184.77,20.26023871]
[1736460084447,3.1675,184.91,184.8,20.26023871]
[1736460086946,2.7044,184.9,184.8,20.26023871]
[1736460087254,1.6345,184.93,184.83,20.26023871]
[1736460087441,2.7042,184.91,184.86,2.7048]
[1736460087753,2.7042,184.91,184.83,20.26023871]
[1736460087941,1.6345,184.93,184.83,20.26023871]
[1736460088147,2.7045,184.88,184.84,2.705]
[1736460088348,1.6345,184.93,184.84,2.705]
[1736460088850,1.6345,184.93,184.83,20.26023871]
[1736460089053,2.7044,184.9,184.85,2.705]
[1736460089552,2.7044,184.9,184.83,20.26023871]
[1736460089752,2.7041,184.92,184.83,20.26023871]
[1736460089948,5.04,184.96,184.83,20.26023871]
[1736460090142,5.04,184.96,184.86,2.7047]
[1736460090653,2.7044,184.89,184.85,2.7049]
[1736460091056,20.26023871,184.95,184.8,20.26023871]
[1736460091553,2.7048,184.87,184.82,2.7054]
[1736460091754,1.6254,184.94,184.8,20.26023871]
[1736460092544,2.7043,184.9,184.84,2.7051]
[1736460092753,1.6254,184.94,184.83,20.26023871]
[1736460093553,3.2299,184.97,184.86,20.26023871]
[1736460093955,1.6472,184.97,184.86,20.26023871]
[1736460094150,1.5475,185.03,184.92,20.26023871]
[1736460094452,2.7023,185.04,184.99,2.7029]
[1736460094859,2.7023,185.04,184.95,20.26023871]
[1736460095056,2.7023,185.04,184.96,3.1058]